bitfinex-derivatives/quotes_SOLF0:USTF0_20250907
["timestamp","ask_amount","ask_price","bid_price","bid_amount"]
[1757260356648,7.89,205.37,205.31,7.36]
[1757260357047,7.89,205.37,205.24,134.9073]
[1757260357048,7.89,205.4,205.34,1.91270991]
[1757260357249,7.89,205.4,205.35,7.36]
[1757260357549,7.89,205.44,205.36,1.91270991]
[1757260357747,9.80270991,205.44,205.37,7.36]
[1757260358248,7.89,205.41,205.37,7.36]
[1757260362257,7.89,205.41,205.35,7.36]
[1757260371160,13.33128758,205.41,205.35,7.36]
[1757260372663,7.35399749,205.41,205.35,7.36]
[1757260375160,5.44128758,205.4,205.35,7.36]
[1757260375666,13.33128758,205.39,205.35,7.36]
[1757260375861,7.35399749,205.39,205.35,7.36]
[1757260376165,7.89,205.38,205.35,7.36]
[1757260377162,13.33128758,205.38,205.35,7.36]
[1757260378164,5.44128758,205.37,205.35,7.36]
[1757260379058,5.44128758,205.36,205.35,7.36]
[1757260379260,5.44128758,205.36,205.31,1.91270991]
[1757260379466,5.44128758,205.34,205.32,7.36]
[1757260379667,5.44128758,205.34,205.31,1.91270991]
[1757260379961,5.44128758,205.34,205.32,7.36]
[1757260380167,5.44128758,205.34,205.29,7.36]
[1757260380368,5.44128758,205.34,205.31,1.91270991]
[1757260380566,5.44128758,205.35,205.32,7.36]
[1757260381264,5.44128758,205.37,205.32,7.36]
[1757260381460,5.44128758,205.37,205.31,1.91270991]
[1757260381461,5.44128758,205.33,205.29,7.36]
[1757260381668,5.44128758,205.31,205.28,99.0]
[1757260381868,5.44128758,205.31,205.29,7.36]
[1757260382366,5.44128758,205.31,205.28,99.0]
[1757260383070,5.44128758,205.31,205.29,7.36]
[1757260383272,5.44128758,205.31,205.28,99.0]
[1757260383668,5.44128758,205.31,205.29,7.36]
[1757260384169,5.44128758,205.32,205.28,99.0]
[1757260384869,5.44128758,205.32,205.29,7.35]
[1757260385269,5.44128758,205.32,205.28,99.0]
[1757260385470,5.44128758,205.34,205.31,9.26270991]
[1757260385669,5.44128758,205.35,205.29,7.35]
[1757260385970,5.44128758,205.33,205.3,7.35]
[1757260386266,5.44128758,205.35,205.31,1.91270991]
[1757260386973,5.44128758,205.35,205.32,7.35]
[1757260387273,5.44128758,205.37,205.33,1.91270991]
[1757260387470,5.44128758,205.37,205.34,7.35]
[1757260387872,13.05128758,205.37,205.34,7.35]
[1757260388371,1.91270991,205.35,205.34,7.35]
[1757260388568,7.61,205.34,205.28,7.35]
[1757260388769,14.98750362,205.32,205.28,7.35]
[1757260389170,7.37750362,205.3,205.23,7.35]
[1757260389368,7.37750362,205.28,205.22,327.38]
[1757260389580,5.46479371,205.27,205.23,7.35]
[1757260389874,7.37750362,205.28,205.22,327.38]
[1757260390073,7.37750362,205.28,205.23,7.35]
[1757260390467,14.98750362,205.28,205.22,327.38]
[1757260390672,9.52270991,205.26,205.22,334.73]
[1757260391275,9.52270991,205.26,205.23,7.35]
[1757260391471,9.52270991,205.26,205.23,16.01]
[1757260392074,1.91270991,205.24,205.23,8.66]
[1757260392874,9.52270991,205.24,205.23,8.66]
[1757260393272,5.46479371,205.25,205.23,8.66]
[1757260393273,1.91270991,205.25,205.23,8.66]
[1757260393868,5.46479371,205.28,205.24,7.35]
[1757260394075,1.91270991,205.29,205.24,7.35]
[1757260394276,1.91270991,205.29,205.23,8.66]
[1757260394277,1.91270991,205.29,205.23,16.01]
[1757260395183,1.91270991,205.27,205.23,16.01]
[1757260395382,7.61,205.26,205.23,8.66]
[1757260396076,1.91270991,205.25,205.23,8.66]
[1757260396286,7.61,205.27,205.23,16.01]
[1757260396480,1.91270991,205.26,205.23,16.01]
[1757260398287,9.52270991,205.26,205.23,16.01]
[1757260398687,1.91270991,205.27,205.23,8.66]
[1757260398886,1.91270991,205.27,205.24,7.35]
[1757260399083,9.52270991,205.27,205.24,7.35]
[1757260399484,7.61,205.26,205.23,8.66]
[1757260399881,7.61,205.26,205.23,16.01]
[1757260400082,1.91270991,205.27,205.23,8.66]
[1757260400287,7.61,205.24,205.23,8.66]
[1757260400485,8.06453582,205.32,205.23,16.01]
[1757260400486,1.91270991,205.26,205.23,16.01]
[1757260401082,7.61,205.29,205.23,16.01]
[1757260401083,1.91270991,205.28,205.24,7.35]
[1757260401290,9.52270991,205.28,205.24,7.35]
[1757260401486,7.61,205.27,205.24,7.35]
[1757260402691,7.61,205.3,205.23,16.01]
[1757260402892,1.91270991,205.27,205.23,16.01]
[1757260403092,1.91270991,205.27,205.23,8.66]
[1757260403294,9.52270991,205.25,205.23,8.66]
[1757260404290,7.61,205.25,205.23,8.66]
[1757260405596,7.61,205.27,205.23,8.66]
[1757260405797,2.99282049,205.28,205.23,8.66]
[1757260406094,7.61,205.27,205.23,8.66]
[1757260406498,7.61,205.27,205.2,7.35]
[1757260407298,7.61,205.27,205.17,7.35]
[1757260407503,2.99282049,205.25,205.17,7.35]
[1757260407800,7.61,205.24,205.17,7.35]
[1757260410206,7.61,205.24,205.18,8.67]
[1757260426215,13.07479371,205.24,205.18,8.67]
[1757260429615,16.4376142,205.22,205.18,8.67]
[1757260429814,7.98,205.21,205.18,8.67]
[1757260430016,8.4576142,205.22,205.18,8.67]
[1757260430219,7.98,205.21,205.18,8.67]
[1757260430420,8.4576142,205.22,205.18,8.67]
[1757260430718,7.98,205.21,205.18,8.67]
[1757260430920,8.4576142,205.22,205.18,8.67]
[1757260431121,7.98,205.21,205.18,8.67]
[1757260431317,8.4576142,205.22,205.18,8.67]
[1757260431514,7.98,205.21,205.18,8.67]
[1757260431922,8.4576142,205.22,205.18,8.67]
[1757260432417,7.98,205.2,205.18,8.67]
[1757260433216,13.44479371,205.2,205.18,8.67]
[1757260434724,7.98,205.19,205.18,8.67]
[1757260435118,13.44479371,205.19,205.18,8.67]
[1757260435823,5.46479371,205.19,205.18,16.5]
[1757260436016,7.98,205.23,205.18,16.5]
[1757260436017,5.46479371,205.21,205.18,8.67]
[1757260436625,5.46479371,205.21,205.19,7.83]
[1757260438324,5.46479371,205.21,205.18,8.67]
[1757260438519,5.46479371,205.21,205.19,7.83]
[1757260440219,5.46479371,205.21,205.18,8.67]
[1757260440428,5.46479371,205.2,205.19,7.83]
[1757260443929,7.98,205.19,205.18,8.67]
[1757260444127,13.45103179,205.19,205.18,8.67]
[1757260444329,5.47103179,205.19,205.18,8.67]
[1757260444828,5.47103179,205.19,205.18,16.5]
[1757260445219,5.47103179,205.19,205.18,8.67]
[1757260445423,13.55103179,205.19,205.18,8.67]
[1757260449333,8.08,205.19,205.18,8.67]
[1757260449631,16.14453582,205.21,205.18,16.4]
[1757260450131,8.06453582,205.21,205.18,16.4]
[1757260450327,8.08,205.2,205.18,8.67]
[1757260453734,5.47781253,205.19,205.18,8.67]
[1757260454632,5.47781253,205.19,205.18,16.4]
[1757260459341,5.47781253,205.19,205.18,7.73]
[1757260467252,18.0607205,205.21,205.18,7.73]
[1757260467450,8.08,205.2,205.18,7.73]
[1757260469650,16.14453582,205.2,205.18,7.73]
[1757260469848,9.9807205,205.21,205.17,7.38]
[1757260470053,5.48004827,205.18,205.17,7.38]
[1757260470254,5.48004827,205.18,205.17,15.11]
[1757260479569,5.48004827,205.18,205.17,7.73]
[1757260484374,9.9807205,205.2,205.17,7.73]
[1757260484575,7.81,205.19,205.17,7.73]
[1757260486170,9.9807205,205.2,205.16,8.76]
[1757260486377,13.29263495,205.17,205.16,8.76]
[1757260486575,7.81,205.17,205.16,8.76]
[1757260488281,13.29132683,205.17,205.16,8.76]
[1757260488477,7.81,205.17,205.16,8.76]
[1757260495082,15.87453582,205.17,205.16,8.76]
[1757260496280,7.81,205.17,205.16,8.76]
[1757260497485,7.81,205.17,205.13,7.85]
[1757260497683,5.4783633,205.15,205.13,7.85]
[1757260498280,5.4783633,205.16,205.12,1.91618468]
[1757260498484,13.2883633,205.16,205.13,7.85]
[1757260498987,13.2883633,205.16,205.12,1.91618468]
[1757260499187,13.2883633,205.16,205.13,7.85]
[1757260499785,7.81,205.15,205.12,1.91618468]
[1757260499986,13.2883633,205.15,205.12,9.76618468]
[1757260500179,13.2883633,205.15,205.13,7.85]
[1757260500384,5.4783633,205.15,205.14,7.85]
[1757260501584,13.2883633,205.15,205.14,7.85]
[1757260501790,5.4783633,205.15,205.14,7.85]
[1757260502184,13.2883633,205.15,205.13,16.63]
[1757260502378,13.2883633,205.15,205.13,8.78]
[1757260502588,13.2883633,205.15,205.13,16.63]
[1757260503886,7.81,205.15,205.13,16.63]
[1757260505292,13.2883633,205.15,205.13,16.63]
[1757260510194,5.4783633,205.15,205.14,7.35]
[1757260510397,13.0683633,205.15,205.13,16.13]
[1757260511394,7.59,205.15,205.13,16.13]
[1757260512297,13.0683633,205.15,205.13,16.13]
[1757260513197,5.4783633,205.15,205.14,7.35]
[1757260513696,7.59,205.18,205.15,7.35]
[1757260513894,13.0683633,205.18,205.15,7.35]
[1757260516395,13.0683633,205.18,205.14,1.91618468]
[1757260516591,13.0683633,205.18,205.15,7.35]
[1757260518798,5.4783633,205.18,205.15,7.35]
[1757260519003,7.59,205.17,205.15,7.35]
[1757260519296,5.4783633,205.18,205.17,7.35]
[1757260523100,7.59,205.21,205.17,7.35]
[1757260523501,1.91618468,205.22,205.17,7.35]
[1757260524000,7.59,205.21,205.17,7.35]
[1757260524198,1.91618468,205.22,205.17,7.35]
[1757260524494,7.59,205.21,205.17,7.35]
[1757260524799,1.91618468,205.22,205.17,7.35]
[1757260524999,7.59,205.21,205.17,7.35]
[1757260525200,1.91618468,205.22,205.17,7.35]
[1757260525797,1.91618468,205.22,205.18,7.56]
[1757260525798,7.59,205.21,205.18,7.56]
[1757260526102,1.91618468,205.22,205.18,7.56]
[1757260526795,1.91618468,205.22,205.18,14.91]
[1757260527304,7.59,205.21,205.18,14.91]
[1757260527599,7.59,205.21,205.19,7.35]
[1757260527798,9.50618468,205.21,205.19,7.35]
[1757260527998,7.59,205.2,205.18,7.56]
[1757260528600,7.59,205.2,205.18,14.91]
[1757260530304,2.99412927,205.19,205.18,7.56]
[1757260530605,10.58412927,205.19,205.18,7.56]
[1757260531502,10.58412927,205.19,205.13,7.35]
[1757260531706,2.99412927,205.16,205.05,412.78]
[1757260531895,10.58412927,205.16,205.1,7.35]
[1757260532101,7.59,205.12,204.97,7.35]
[1757260532301,7.59,205.09,204.99,7.35]
[1757260532606,7.59,205.09,205.01,7.35]
[1757260532800,2.99412927,205.1,205.02,7.35]
[1757260533799,7.59,205.12,205.02,7.35]
[1757260534005,19.30886178,205.74,204.99,68.2905]
[1757260534006,2.99412927,205.16,205.05,7.35]
[1757260534307,10.58412927,205.16,205.05,7.35]
[1757260535104,10.58412927,205.16,205.06,1.28]
[1757260535404,10.58412927,205.16,205.07,7.84]
[1757260536100,7.93,205.12,205.06,1.28]
[1757260537999,7.93,205.12,205.07,7.84]
[1757260538204,2.99412927,205.16,205.06,4.27412927]
[1757260538404,7.93,205.15,205.07,7.84]
[1757260547315,12.12,205.23,205.07,7.84]
[1757260547620,7.93,205.18,205.07,7.84]
[1757260547813,7.93,205.18,205.08,2.99412927]
[1757260548012,7.93,205.18,205.09,7.84]
[1757260558919,7.93,205.18,205.11,7.84]
[1757260559130,10.92412927,205.18,205.07,7.84]
[1757260568440,16.40249257,205.18,205.07,7.84]
[1757260573138,5.4783633,205.17,205.07,7.84]
[1757260573338,7.68,205.16,205.07,7.84]
[1757260577238,7.68,205.16,205.08,1.34]
[1757260577538,7.68,205.16,205.09,7.92]
[1757260579742,13.1583633,205.16,205.09,7.92]
[1757260583347,7.68,205.16,205.09,7.92]
[1757260584041,7.68,205.16,205.1,4.36671736]
[1757260584245,7.68,205.16,205.11,4.36671736]
[1757260584441,7.68,205.16,205.12,4.36671736]
[1757260584639,7.68,205.16,205.14,7.92]
[1757260584843,7.68,205.16,205.15,4.36671736]
[1757260585546,7.68,205.18,205.15,4.36671736]
[1757260585849,7.68,205.19,205.16,4.36671736]
[1757260586046,13.1583633,205.19,205.17,4.36671736]
[1757260586242,13.1583633,205.19,205.18,4.36671736]
[1757260586447,13.1583633,205.19,205.1,7.92]
[1757260586642,5.48060451,205.18,205.1,7.92]
[1757260586948,7.68,205.17,205.1,7.92]
[1757260587349,10.67412927,205.17,205.1,7.92]
[1757260587949,16.15473378,205.17,205.1,7.92]
[1757260588347,1.91730299,205.14,205.1,7.92]
[1757260588548,7.68,205.13,205.1,7.92]
[1757260590145,1.91730299,205.14,205.1,7.92]
[1757260590346,1.91730299,205.12,205.08,1.34]
[1757260590552,9.59730299,205.12,205.09,8.05]
[1757260590851,7.68,205.09,205.08,1.34]
[1757260592451,7.68,205.13,205.09,8.05]
[1757260592647,9.59730299,205.13,205.09,8.05]
[1757260592854,9.59730299,205.13,205.08,1.34]
[1757260593353,9.59730299,205.13,205.09,8.05]
[1757260593653,9.59730299,205.13,205.08,1.34]
[1757260593852,9.59730299,205.13,205.09,8.05]
[1757260594448,9.59730299,205.13,205.08,1.34]
[1757260594853,7.48,205.12,205.09,8.05]
[1757260595049,7.48,205.12,205.08,1.34]
[1757260595245,1.91730299,205.13,205.08,9.19]
[1757260596155,7.48,205.12,205.08,9.19]
[1757260596356,7.48,205.12,205.09,7.85]
[1757260596656,5.48060451,205.15,205.08,1.34]
[1757260596859,1.91730299,205.15,205.09,7.85]
[1757260598757,14.8779075,205.16,205.09,9.76730299]
[1757260600361,1.91730299,205.14,205.09,9.76730299]
[1757260600554,7.48,205.13,205.09,9.76730299]
[1757260600753,1.91730299,205.14,205.09,9.76730299]
[1757260601357,7.48,205.13,205.09,9.76730299]
[1757260601859,7.48,205.13,205.1,7.85]
[1757260603051,1.91730299,205.14,205.08,9.19]
[1757260603256,1.91730299,205.12,205.08,9.19]
[1757260603560,7.48,205.11,205.08,9.19]
[1757260604462,7.48,205.11,205.09,7.85]
[1757260606062,12.96060451,205.15,205.09,7.85]
[1757260606265,14.8779075,205.15,205.09,7.85]
[1757260609862,7.3979075,205.15,205.1,1.34]
[1757260610065,7.48,205.14,205.1,9.19]
[1757260610256,7.3979075,205.15,205.1,9.19]
[1757260610661,7.48,205.14,205.1,9.19]
[1757260610862,7.3979075,205.15,205.1,9.19]
[1757260611164,7.48,205.14,205.1,9.19]
[1757260611360,7.3979075,205.15,205.1,9.19]
[1757260611962,7.48,205.14,205.1,9.19]
[1757260612361,7.48,205.14,205.11,7.85]
[1757260613658,7.3979075,205.15,205.11,7.85]
[1757260614063,7.48,205.14,205.11,7.85]
[1757260614559,7.3979075,205.15,205.1,1.34]
[1757260614763,7.48,205.14,205.1,9.19]
[1757260614966,7.48,205.15,205.1,3.25730299]
[1757260615160,7.48,205.15,205.11,7.85]
[1757260615560,5.48060451,205.16,205.11,7.85]
[1757260615765,5.48060451,205.16,205.1,3.25730299]
[1757260615969,12.96060451,205.16,205.1,11.10730299]
[1757260616859,1.91730299,205.15,205.1,9.19]
[1757260617064,7.48,205.14,205.1,9.19]
[1757260617264,1.91730299,205.15,205.1,9.19]
[1757260617563,7.48,205.14,205.11,7.85]
[1757260619971,7.3979075,205.15,205.11,7.85]
[1757260620160,7.48,205.14,205.11,7.85]
[1757260620367,7.48,205.14,205.1,1.34]
[1757260620965,7.3979075,205.15,205.1,1.34]
[1757260621174,7.48,205.14,205.1,1.34]
[1757260621364,7.3979075,205.15,205.1,1.34]
[1757260621564,7.48,205.14,205.1,1.34]
[1757260621766,7.3979075,205.15,205.1,1.34]
[1757260622361,1.91730299,205.15,205.1,1.34]
[1757260622771,7.48,205.14,205.1,9.19]
[1757260622972,1.91730299,205.15,205.1,9.19]
[1757260623475,1.91730299,205.15,205.1,1.34]
[1757260623672,7.48,205.13,205.1,1.34]
[1757260623966,7.3979075,205.15,205.1,1.34]
[1757260624366,1.91730299,205.13,205.1,1.34]
[1757260624567,7.48,205.12,205.1,1.34]
[1757260624865,1.91730299,205.13,205.1,1.34]
[1757260625170,7.48,205.12,205.1,1.34]
[1757260625372,1.91730299,205.13,205.1,1.34]
[1757260625562,7.48,205.12,205.1,1.34]
[1757260625762,1.91730299,205.13,205.1,1.34]
[1757260625969,7.48,205.12,205.1,1.34]
[1757260626272,1.91730299,205.13,205.1,1.34]
[1757260626767,7.48,205.12,205.1,1.34]
[1757260626973,1.91730299,205.13,205.1,1.34]
[1757260627273,7.48,205.12,205.1,1.34]
[1757260628074,1.91730299,205.13,205.1,1.34]
[1757260628374,7.48,205.12,205.1,1.34]
[1757260629875,1.91730299,205.13,205.1,1.34]
[1757260630070,7.48,205.12,205.1,1.34]
[1757260631271,1.91730299,205.13,205.1,1.34]
[1757260632071,7.48,205.12,205.1,1.34]
[1757260632471,1.91730299,205.13,205.1,1.34]
[1757260632673,7.48,205.12,205.1,1.34]
[1757260633174,1.91730299,205.13,205.1,1.34]
[1757260634067,7.48,205.12,205.1,1.34]
[1757260634375,1.91730299,205.13,205.1,1.34]
[1757260634572,7.48,205.12,205.1,1.34]
[1757260634880,1.91730299,205.13,205.1,1.34]
[1757260635079,7.48,205.12,205.1,1.34]
[1757260635976,8.06453582,205.18,205.1,1.34]
[1757260635977,12.96060451,205.18,205.12,7.4]
[1757260636175,7.48,205.18,205.13,9.31730299]
[1757260636576,7.48,205.18,205.14,11.98109281]
[1757260636774,1.91730299,205.19,205.15,4.58109281]
[1757260636975,1.91730299,205.19,205.16,4.58109281]
[1757260637275,1.91730299,205.19,205.14,7.4]
[1757260637276,7.48,205.18,205.17,4.58109281]
[1757260645375,9.39730299,205.23,205.17,11.98109281]
[1757260645576,7.48,205.22,205.18,11.98109281]
[1757260645875,7.48,205.22,205.19,11.98109281]
[1757260646081,7.48,205.22,205.2,4.58109281]
[1757260646281,7.48,205.22,205.21,4.58109281]
[1757260646479,7.48,205.22,205.19,7.10509281]
[1757260646879,1.91730299,205.28,205.2,1.91730299]
[1757260647084,7.48,205.29,205.23,1.91730299]
[1757260647984,7.48,205.29,205.22,1.91730299]
[1757260648385,7.48,205.29,205.23,2.524]
[1757260648881,9.39730299,205.28,205.24,1.33]
[1757260649587,9.39730299,205.28,205.21,1.91730299]
[1757260649886,9.39730299,205.28,205.17,23.53260598]
[1757260650083,9.39730299,205.28,205.21,1.91730299]
[1757260650290,7.48,205.28,205.19,2.99186655]
[1757260650487,7.48,205.28,205.2,7.11]
[1757260653788,2.99186655,205.27,205.2,7.11]
[1757260656092,2.99186655,205.27,205.2,2.234]
[1757260658398,2.99186655,205.27,205.18,2.22]
[1757260659296,7.98,205.26,205.15,2.22]
[1757260659500,2.99186655,205.18,205.11,2.22]
[1757260659796,7.98,205.17,205.11,2.22]
[1757260660894,2.99186655,205.16,205.07,2.22]
[1757260662601,7.98,205.15,205.07,2.22]
[1757260663196,7.98,205.15,205.04,5.21186655]
[1757260663500,7.98,205.15,205.04,125.05186655]
[1757260663695,2.99186655,205.16,205.04,125.05186655]
[1757260664102,7.98,205.15,205.04,125.05186655]
[1757260664697,2.99186655,205.16,205.04,125.05186655]
[1757260665502,7.98,205.15,205.04,125.05186655]
[1757260665997,2.99186655,205.16,205.04,125.05186655]
[1757260666304,7.98,205.15,205.04,125.05186655]
[1757260666596,2.99186655,205.16,205.04,122.06]
[1757260666997,7.98,205.15,205.04,122.06]
[1757260667899,2.99186655,205.16,205.04,122.06]
[1757260668302,7.98,205.15,205.04,122.06]
[1757260668500,2.99186655,205.16,205.04,122.06]
[1757260669108,7.98,205.15,205.04,122.06]
[1757260669304,2.99186655,205.16,205.04,122.06]
[1757260669504,7.98,205.15,205.04,122.06]
[1757260669705,2.99186655,205.16,205.04,122.06]
[1757260669900,7.98,205.15,205.04,122.06]
[1757260670404,2.99186655,205.16,205.05,2.22]
[1757260670610,7.98,205.15,205.05,2.22]
[1757260677409,7.98,205.15,205.08,2.22]
[1757260677906,10.97186655,205.15,205.08,2.22]
[1757260678517,7.98,205.15,205.08,2.22]
[1757260678712,2.99186655,205.18,205.08,2.22]
[1757260678713,0.03096342,205.14,205.09,0.03376247]
[1757260679418,0.03096342,205.14,205.1,2.22]
[1757260679815,8.01096342,205.14,205.1,2.22]
[1757260680015,8.01096342,205.14,205.09,0.03376247]
[1757260681219,8.01096342,205.14,205.1,2.22]
[1757260681612,8.01096342,205.14,205.09,0.03376247]
[1757260682018,8.01096342,205.14,205.1,2.22]
[1757260683420,8.01096342,205.14,205.09,0.03376247]
[1757260683621,8.01096342,205.14,205.1,2.22]
[1757260684819,7.98,205.13,205.1,2.22]
[1757260689020,7.81,205.13,205.09,0.03376247]
[1757260689423,3.02282997,205.14,205.09,0.03376247]
[1757260689621,7.81,205.13,205.09,0.03376247]
[1757260689922,0.03096342,205.14,205.09,0.03376247]
[1757260690124,7.81,205.13,205.09,2.27376247]
[1757260690319,0.03096342,205.14,205.09,2.27376247]
[1757260690929,7.81,205.13,205.09,2.27376247]
[1757260691235,0.03096342,205.14,205.09,2.27376247]
[1757260692217,7.81,205.13,205.09,2.27376247]
[1757260692629,0.03096342,205.14,205.09,2.27376247]
[1757260693424,0.03096342,205.14,205.09,0.03376247]
[1757260693925,7.81,205.13,205.09,0.03376247]
[1757260695730,0.03096342,205.14,205.09,2.27376247]
[1757260696128,7.81,205.13,205.09,2.27376247]
[1757260696827,0.03096342,205.14,205.09,2.27376247]
[1757260697028,7.81,205.13,205.09,2.27376247]
[1757260697234,0.03096342,205.14,205.09,2.27376247]
[1757260698025,7.81,205.13,205.1,2.24]
[1757260698832,0.03096342,205.14,205.09,0.03376247]
[1757260699628,0.03096342,205.14,205.1,2.24]
[1757260700037,0.03096342,205.14,205.09,0.03376247]
[1757260700235,0.03096342,205.14,205.1,2.24]
[1757260700435,0.03096342,205.14,205.09,0.03376247]
[1757260700634,0.03096342,205.14,205.1,2.24]
[1757260700830,0.03096342,205.14,205.09,0.03376247]
[1757260701334,0.03096342,205.14,205.1,2.24]
[1757260701534,0.03096342,205.14,205.09,0.03376247]
[1757260701735,0.03096342,205.14,205.1,2.24]
[1757260702036,0.03096342,205.14,205.09,0.03376247]
[1757260702234,0.03096342,205.14,205.1,2.24]
[1757260702633,0.03096342,205.14,205.09,0.03376247]
[1757260703433,0.03096342,205.14,205.1,2.24]
[1757260703831,7.84096342,205.14,205.09,0.03376247]
[1757260704030,7.84096342,205.14,205.1,2.24]
[1757260704241,7.84096342,205.14,205.09,0.03376247]
[1757260704436,7.84096342,205.14,205.1,2.24]
[1757260704740,7.84096342,205.14,205.09,0.03376247]
[1757260704942,7.81,205.13,205.1,2.24]
[1757260705239,0.03096342,205.14,205.09,2.27376247]
[1757260705429,7.81,205.13,205.09,2.27376247]
[1757260705834,0.03096342,205.14,205.09,2.27376247]
[1757260706032,7.81,205.13,205.09,2.27376247]
[1757260706235,0.03096342,205.14,205.09,2.27376247]
[1757260706535,7.81,205.13,205.09,0.03376247]
[1757260707938,5.51156793,205.14,205.09,0.03376247]
[1757260708137,7.81,205.13,205.09,0.03376247]
[1757260708332,5.51156793,205.14,205.09,0.03376247]
[1757260708536,7.81,205.13,205.09,0.03376247]
[1757260708937,5.51156793,205.14,205.09,0.03376247]
[1757260709243,7.81,205.13,205.09,0.03376247]
[1757260709636,5.51156793,205.14,205.09,0.03376247]
[1757260710442,7.81,205.13,205.09,0.03376247]
[1757260710942,5.51156793,205.14,205.09,0.03376247]
[1757260711540,7.81,205.13,205.09,0.03376247]
[1757260712245,5.51156793,205.14,205.09,0.03376247]
[1757260712447,5.48060451,205.13,205.09,0.03376247]
[1757260712641,7.81,205.12,205.09,0.03376247]
[1757260713047,5.48060451,205.13,205.09,0.03376247]
[1757260713247,7.81,205.12,205.09,0.03376247]
[1757260713743,7.42904341,205.14,205.09,0.03376247]
[1757260714044,7.81,205.11,205.09,0.03376247]
[1757260714350,13.29060451,205.11,205.09,0.03376247]
[1757260714548,13.29060451,205.1,205.09,0.03376247]
[1757260715344,7.81,205.1,205.09,0.03376247]
[1757260718853,13.43060451,205.11,205.09,0.03376247]
[1757260719054,5.48060451,205.11,205.09,0.03376247]
[1757260719249,5.48060451,205.13,205.1,1.91747548]
[1757260719454,0.03096342,205.14,205.13,1.91747548]
[1757260719855,7.98096342,205.14,205.13,1.91747548]
[1757260722057,7.98096342,205.14,205.13,6.31551638]
[1757260725156,13.43060451,205.2,205.13,9.04551638]
[1757260725358,7.95,205.2,205.18,1.91747548]
[1757260725661,7.95,205.2,205.19,4.3980409]
[1757260725857,1.91747548,205.26,205.19,4.3980409]
[1757260726062,1.91747548,205.28,205.21,1.91747548]
[1757260726261,7.95,205.27,205.22,4.3980409]
[1757260726463,7.95,205.27,205.23,4.3311655]
[1757260726766,7.95,205.27,205.24,4.3311655]
[1757260727061,7.95,205.27,205.25,4.3311655]
[1757260727257,7.95,205.27,205.26,4.3311655]
[1757260729863,8.43,205.27,205.22,0.03678459]
[1757260730068,327.74,205.33,205.22,0.03678459]
[1757260730069,9.86747548,205.23,205.22,0.03678459]
[1757260730265,9.86747548,205.23,205.05,6.58]
[1757260730266,7.95,205.22,205.05,6.58]
[1757260730469,9.86747548,205.13,205.07,1.91747548]
[1757260730667,9.86747548,205.13,205.07,8.49747548]
[1757260732569,7.95,205.26,205.08,6.58]
[1757260732772,1.91747548,205.17,205.11,1.91747548]
[1757260732974,7.95,205.18,205.11,1.91747548]
[1757260733174,9.86747548,205.18,205.11,1.91747548]
[1757260733874,9.86747548,205.18,205.12,1.91747548]
[1757260734067,1.91747548,205.21,205.16,1.91747548]
[1757260734272,1.91747548,205.21,205.17,6.58]
[1757260734474,9.86747548,205.21,205.17,6.58]
[1757260734774,7.95,205.2,205.17,6.58]
[1757260735974,1.91747548,205.21,205.16,1.91747548]
[1757260736170,7.95,205.2,205.16,8.49747548]
[1757260736375,9.86747548,205.23,205.17,6.58]